bitfinex/quotes_SOLUSD_20241013
["timestamp","ask_amount","ask_price","bid_price","bid_amount"]
[1728804544983,22.6499,146.46,146.41,1.36582959]
[1728804545287,22.6499,146.46,146.42,3.47670627]
[1728804545466,22.6499,146.46,146.4,20.0]
[1728804545671,22.6499,146.46,146.41,3.47671349]
[1728804545967,22.6499,146.46,146.42,3.47671349]
[1728804546169,22.6499,146.46,146.4,20.0]
[1728804546368,22.6499,146.46,146.41,3.4765902]
[1728804546581,22.6499,146.46,146.4,20.0]
[1728804549990,22.6499,146.46,146.4,21.36586067]
[1728804551794,22.6499,146.46,146.4,20.0]
[1728804551795,15.822,146.46,146.4,20.0]
[1728804600336,22.6498,146.46,146.4,20.0]
[1728804606620,22.6498,146.46,146.41,3.47808702]
[1728804606819,22.6498,146.46,146.42,3.47808702]
[1728804607032,22.6498,146.46,146.43,3.47808702]
[1728804607231,22.6498,146.46,146.4,20.0]
[1728804607423,22.6498,146.46,146.41,3.47795094]
[1728804607736,22.6498,146.46,146.42,3.47795333]
[1728804617027,22.6498,146.46,146.4,20.0]
[1728804623154,15.822,146.46,146.41,1.36578285]
[1728804624757,15.822,146.46,146.4,20.0]
[1728804632368,15.822,146.46,146.42,20.0]
[1728804637255,6.8269,146.48,146.43,20.0]
[1728804638763,22.9616,146.5,146.44,12.7676034]
[1728804638975,22.9616,146.5,146.44,11.40198005]
[1728804639154,22.9616,146.5,146.43,11.40198005]
[1728804640166,22.9616,146.5,146.42,11.40198005]
[1728804640359,22.9616,146.5,146.43,20.0]
[1728804641469,6.8264,146.49,146.43,20.0]
[1728804642351,6.8264,146.49,146.41,11.40198005]
[1728804642746,6.8264,146.49,146.42,20.0]
[1728804648372,6.8264,146.49,146.42,11.40198005]
[1728804648759,6.8264,146.49,146.43,20.0]
[1728804660483,16.1353,146.5,146.43,20.0]
[1728804660788,16.1353,146.5,146.36,20.0]
[1728804660789,6.828,146.46,146.36,20.0]
[1728804660999,6.828,146.46,146.39,20.0]
[1728804661863,6.828,146.46,146.39,11.40198005]
[1728804662488,6.1859,146.47,146.4,20.0]
[1728804662685,13.0133,146.47,146.4,20.0]
[1728804666381,13.0133,146.47,146.4,11.40198005]
[1728804666874,13.0133,146.47,146.41,20.0]
[1728804667871,13.0133,146.47,146.42,3.47297967]
[1728804668169,13.0133,146.47,146.43,3.47297967]
[1728804668372,13.0133,146.47,146.41,20.0]
[1728804668564,13.0133,146.47,146.42,3.47318814]
[1728804668784,13.0133,146.47,146.43,3.47318814]
[1728804669190,13.0133,146.47,146.41,20.0]
[1728804669599,13.0133,146.47,146.42,3.47336792]
[1728804669772,13.0133,146.47,146.43,3.47336792]
[1728804669974,13.0133,146.47,146.41,20.0]
[1728804670188,13.0133,146.47,146.42,3.47337142]
[1728804670390,13.0133,146.47,146.41,20.0]
[1728804670391,13.0133,146.47,146.43,3.47337142]
[1728804670592,13.0133,146.47,146.41,20.0]
[1728804670794,13.0133,146.47,146.42,3.47358082]
[1728804670994,13.0133,146.47,146.43,3.47358082]
[1728804671301,13.0133,146.47,146.42,3.4740531]
[1728804671302,6.8285,146.45,146.42,3.4740531]
[1728804671484,6.8285,146.45,146.38,20.0]
[1728804671794,6.8285,146.45,146.39,3.47406059]
[1728804671983,6.8285,146.45,146.4,3.47406059]
[1728804672187,6.8285,146.45,146.41,3.47406059]
[1728804672383,6.8285,146.45,146.42,3.47406059]
[1728804672694,6.8285,146.45,146.38,20.0]
[1728804672883,6.8285,146.45,146.39,3.47382559]
[1728804673083,6.8285,146.45,146.4,3.47382559]
[1728804673286,6.8279,146.46,146.41,3.47382559]
[1728804673600,6.8279,146.46,146.42,3.47382559]
[1728804673777,6.8279,146.46,146.41,20.0]
[1728804673978,6.8279,146.46,146.42,3.47358156]
[1728804674179,6.8279,146.46,146.41,20.0]
[1728804674396,6.8279,146.46,146.42,3.47340909]
[1728804674586,6.8279,146.46,146.41,20.0]
[1728804674787,6.8279,146.46,146.42,3.47340909]
[1728804674987,6.8279,146.46,146.41,20.0]
[1728804675172,6.8279,146.46,146.42,3.47341166]
[1728804675377,6.8279,146.46,146.41,20.0]
[1728804675576,6.8279,146.46,146.42,3.47325338]
[1728804675799,6.8279,146.46,146.41,20.0]
[1728804675997,6.1859,146.47,146.42,3.47325338]
[1728804676211,13.0133,146.47,146.41,20.0]
[1728804676504,13.0133,146.47,146.42,3.47300334]
[1728804676691,13.0133,146.47,146.41,20.0]
[1728804676902,13.0133,146.47,146.42,3.47311403]
[1728804677110,13.0133,146.47,146.41,21.36579339]
[1728804677317,13.0133,146.47,146.42,3.47309861]
[1728804677605,13.0133,146.47,146.41,20.0]
[1728804677791,13.0133,146.47,146.42,3.47322467]
[1728804678103,13.0133,146.47,146.41,20.0]
[1728804678304,13.0133,146.47,146.42,3.47320542]
[1728804678509,13.0133,146.47,146.41,20.0]
[1728804678689,13.0133,146.47,146.42,3.47313404]
[1728804678887,13.0133,146.47,146.41,20.0]
[1728804679102,13.0133,146.47,146.42,3.47313631]
[1728804679294,13.0133,146.47,146.41,21.36580883]
[1728804679497,13.0133,146.47,146.42,3.47305342]
[1728804679682,13.0133,146.47,146.43,3.47305342]
[1728804679886,13.0133,146.47,146.41,20.0]
[1728804690323,6.1859,146.47,146.41,20.0]
[1728804690616,6.8273,146.47,146.4,20.0]
[1728804695216,6.8273,146.47,146.41,1.36573625]
[1728804695419,6.8273,146.47,146.4,20.0]
[1728804696623,22.1031,146.48,146.4,20.0]
[1728804697320,22.1031,146.48,146.41,11.40198005]
[1728804698010,22.1031,146.48,146.42,20.0]
[1728804702708,15.2761,146.48,146.42,20.0]
[1728804703121,15.2761,146.48,146.42,11.40198005]
[1728804703415,15.2761,146.48,146.43,20.0]
[1728804706709,22.1029,146.48,146.43,20.0]
[1728804707311,22.1029,146.48,146.4,31.40198005]
[1728804707931,22.1029,146.48,146.41,20.0]
[1728804713742,6.8274,146.47,146.4,20.0]
[1728804717746,15.2761,146.48,146.42,20.0]
[1728804718059,22.103,146.48,146.42,20.0]
[1728804728169,6.8264,146.49,146.42,31.40198005]
[1728804729069,6.8264,146.49,146.43,11.40198005]
[1728804731464,6.8264,146.49,146.41,11.40198005]
[1728804731854,6.8264,146.49,146.42,20.0]
[1728804740152,6.8264,146.49,146.43,3.47601603]
[1728804740366,6.8264,146.49,146.44,3.47601603]
[1728804740676,6.8264,146.49,146.42,20.0]
[1728804740677,6.8264,146.49,146.45,3.47601603]
[1728804740977,6.8264,146.49,146.42,20.0]
[1728804741171,6.8264,146.49,146.43,3.47586545]
[1728804741380,6.8264,146.49,146.44,3.47586545]
[1728804741559,6.8264,146.49,146.45,3.47586545]
[1728804741764,6.8264,146.49,146.42,20.0]
[1728804741967,6.8264,146.49,146.43,3.47574466]
[1728804742164,6.8264,146.49,146.44,3.47574466]
[1728804742350,6.8264,146.49,146.45,3.47574466]
[1728804742555,6.8264,146.49,146.42,20.0]
[1728804742875,6.8264,146.49,146.43,3.47562444]
[1728804743076,6.8264,146.49,146.44,3.47562444]
[1728804743285,6.8264,146.49,146.45,3.47562444]
[1728804743487,6.8264,146.49,146.42,20.0]
[1728804743657,6.8264,146.49,146.43,3.47548561]
[1728804743984,6.8264,146.49,146.44,3.47548561]
[1728804744159,6.8264,146.49,146.45,3.47548561]
[1728804744364,6.8264,146.49,146.42,20.0]
[1728804744674,6.8264,146.49,146.43,3.47540284]
[1728804744872,6.2349,146.5,146.44,3.47540284]
[1728804745085,6.8269,146.48,146.45,3.47540284]
[1728804745262,6.8269,146.48,146.42,20.0]
[1728804745465,6.8269,146.48,146.39,15.102]
[1728804745466,6.8276,146.47,146.43,3.47561691]
[1728804745769,6.8276,146.47,146.44,3.47561691]
[1728804745956,6.8276,146.47,146.4,20.0]
[1728804746160,6.8276,146.47,146.41,3.47584961]
[1728804746360,6.8276,146.47,146.42,3.47584961]
[1728804746568,6.8276,146.47,146.43,3.47584961]
[1728804746880,6.8276,146.47,146.44,3.47584961]
[1728804747186,6.8276,146.47,146.42,20.0]
[1728804747359,6.8276,146.47,146.43,3.47569886]
[1728804747561,6.8276,146.47,146.44,3.47569886]
[1728804747861,6.8276,146.47,146.42,20.0]
[1728804748065,6.8276,146.47,146.43,3.47572123]
[1728804748263,6.8276,146.47,146.44,3.47572123]
[1728804748464,6.8276,146.47,146.42,20.0]
[1728804748685,6.8276,146.47,146.43,3.47566635]
[1728804748979,6.8276,146.47,146.44,3.47566635]
[1728804749176,6.8276,146.47,146.42,20.0]
[1728804749381,6.8276,146.47,146.43,3.47561564]
[1728804749577,6.8276,146.47,146.44,3.47561564]
[1728804749782,15.3274,146.48,146.42,20.0]
[1728804749986,22.1544,146.48,146.43,3.47560793]
[1728804750164,22.1544,146.48,146.44,3.47560793]
[1728804750565,22.1544,146.48,146.42,20.0]
[1728804750775,22.1544,146.48,146.43,3.47546926]
[1728804750972,22.1544,146.48,146.44,3.47546926]
[1728804751566,22.1544,146.48,146.42,20.0]
[1728804751972,22.1544,146.48,146.43,4.84107447]
[1728804752173,22.1544,146.48,146.44,3.47538212]
[1728804752378,6.8264,146.49,146.45,3.47538212]
[1728804752585,6.8264,146.49,146.44,20.0]
[1728804752889,6.8264,146.49,146.45,3.47528773]
[1728804753093,6.8264,146.49,146.44,20.0]
[1728804753385,6.2349,146.5,146.44,20.0]
[1728804753386,13.0609,146.5,146.45,3.47528852]
[1728804753590,13.0609,146.5,146.44,31.40198005]
[1728804753771,13.0609,146.5,146.45,3.47513868]
[1728804753975,13.0609,146.5,146.44,31.40198005]
[1728804754479,13.0609,146.5,146.45,3.47513948]
[1728804754776,13.0609,146.5,146.44,31.40198005]
[1728804754975,13.0609,146.5,146.45,3.47502571]
[1728804755178,13.0609,146.5,146.44,31.40198005]
[1728804755378,13.0609,146.5,146.45,3.4749189]
[1728804755602,13.0609,146.5,146.44,31.40198005]
[1728804755787,13.0609,146.5,146.45,3.4749181]
[1728804755973,13.0609,146.5,146.44,31.40198005]
[1728804756179,6.2349,146.5,146.45,3.47491239]
[1728804756384,6.2349,146.5,146.44,31.40198005]
[1728804756687,6.2349,146.5,146.45,3.47481622]
[1728804756885,6.2349,146.5,146.44,31.40198005]
[1728804757085,6.2349,146.5,146.45,3.47481659]
[1728804757387,6.2349,146.5,146.44,31.40198005]
[1728804757563,6.2349,146.5,146.45,3.47473034]
[1728804757770,22.8787,146.51,146.46,21.36544204]
[1728804758075,22.8787,146.51,146.46,20.0]
[1728804762397,22.8787,146.51,146.45,20.0]
[1728804762573,22.8787,146.51,146.46,3.47284931]
[1728804762772,22.8787,146.51,146.45,20.0]
[1728804762985,22.8787,146.51,146.46,3.47289661]
[1728804763171,22.8787,146.51,146.45,20.0]
[1728804763371,22.8787,146.51,146.46,3.47275748]
[1728804763563,22.8787,146.51,146.45,20.0]
[1728804763885,22.8787,146.51,146.46,3.47275447]
[1728804764185,22.8787,146.51,146.45,20.0]
[1728804764390,22.8787,146.51,146.46,3.47263975]
[1728804764596,22.8787,146.51,146.45,20.0]
[1728804764781,22.8787,146.51,146.46,3.47263594]
[1728804764964,22.8787,146.51,146.45,20.0]
[1728804765171,22.8787,146.51,146.46,3.47263975]
[1728804765369,22.8787,146.51,146.45,20.0]
[1728804765569,22.8787,146.51,146.46,3.47256188]
[1728804765895,22.8787,146.51,146.46,20.0]
[1728804767091,22.8787,146.51,146.44,11.40198005]
[1728804767292,22.8787,146.51,146.45,23.47228309]
[1728804767496,22.8787,146.51,146.46,23.47228309]
[1728804767682,22.8787,146.51,146.46,20.0]
[1728804768296,22.8787,146.51,146.45,20.0]
[1728804768470,22.8787,146.51,146.46,3.47241633]
[1728804768796,22.8787,146.51,146.45,20.0]
[1728804768998,22.8787,146.51,146.46,3.47242161]
[1728804769174,22.8787,146.51,146.45,20.0]
[1728804769372,22.8787,146.51,146.46,3.47238608]
[1728804769595,22.8787,146.51,146.45,20.0]
[1728804769897,22.8787,146.51,146.46,3.47237809]
[1728804770195,22.8787,146.51,146.45,20.0]
[1728804770398,22.8787,146.51,146.46,3.47228085]
[1728804770590,22.8787,146.51,146.45,20.0]
[1728804770792,22.8787,146.51,146.46,3.47231608]
[1728804770974,22.8787,146.51,146.45,20.0]
[1728804771174,22.8787,146.51,146.46,3.47231877]
[1728804771471,22.8787,146.51,146.45,31.40198005]
[1728804771671,22.8787,146.51,146.46,3.47230618]
[1728804771984,22.8787,146.51,146.45,31.40198005]
[1728804772290,22.8787,146.51,146.46,3.47233231]
[1728804772491,22.8787,146.51,146.45,31.40198005]
[1728804772676,22.8787,146.51,146.46,3.47234761]
[1728804772879,22.8787,146.51,146.45,31.40198005]
[1728804773078,22.8787,146.51,146.46,3.47235179]
[1728804773282,22.8787,146.51,146.45,31.40198005]
[1728804773903,22.8787,146.51,146.46,3.47239738]
[1728804774098,22.8787,146.51,146.45,31.40198005]
[1728804774397,22.8787,146.51,146.46,3.47237832]
[1728804774596,22.8787,146.51,146.45,31.40198005]
[1728804774800,22.8787,146.51,146.46,3.47238171]
[1728804774984,22.8787,146.51,146.45,31.40198005]
[1728804775189,22.8787,146.51,146.46,3.47238091]
[1728804775382,22.8787,146.51,146.45,31.40198005]
[1728804775697,22.8787,146.51,146.46,3.47236388]
[1728804775900,22.8787,146.51,146.45,31.40198005]
[1728804776209,22.8787,146.51,146.46,4.83772291]
[1728804776397,22.8787,146.51,146.46,1.36535983]
[1728804776696,22.8787,146.51,146.45,31.40198005]
[1728804776878,22.8787,146.51,146.46,3.47232462]
[1728804777077,22.8787,146.51,146.45,31.40198005]
[1728804777399,22.8787,146.51,146.46,4.83767508]
[1728804777577,22.8787,146.51,146.46,1.3653653]
[1728804777999,22.8787,146.51,146.45,31.40198005]
[1728804778199,22.8787,146.51,146.46,3.47229675]
[1728804778375,22.8787,146.51,146.45,31.40198005]
[1728804778575,22.8787,146.51,146.46,3.47221612]
[1728804778784,22.8787,146.51,146.45,31.40198005]
[1728804778983,22.8787,146.51,146.46,3.4722195]
[1728804779305,22.8787,146.51,146.45,31.40198005]
[1728804779477,22.8787,146.51,146.46,3.47214608]
[1728804779679,22.8787,146.51,146.45,31.40198005]
[1728804779904,22.8787,146.51,146.46,3.47214608]
[1728804780202,16.0531,146.51,146.45,20.0]
[1728804780403,6.8259,146.5,146.46,3.47214392]
[1728804780585,6.8259,146.5,146.45,20.0]
[1728804780782,6.8259,146.5,146.46,3.472165]
[1728804780993,6.8259,146.5,146.44,20.0]
[1728804781199,6.8259,146.5,146.45,3.47216918]
[1728804781498,6.8259,146.5,146.46,3.47216918]
[1728804781695,6.8259,146.5,146.44,20.0]
[1728804782001,6.8259,146.5,146.45,3.47219715]
[1728804782180,6.8259,146.5,146.46,3.47219715]
[1728804782377,6.8259,146.5,146.45,20.0]
[1728804782717,6.8259,146.5,146.46,3.47224066]
[1728804782877,6.8259,146.5,146.45,20.0]
[1728804783080,6.8259,146.5,146.46,3.47223728]
[1728804783278,6.8259,146.5,146.45,20.0]
[1728804783493,6.8259,146.5,146.46,3.47230228]
[1728804783694,6.8259,146.5,146.45,20.0]
[1728804784174,6.8259,146.5,146.46,3.47230982]
[1728804784379,6.8259,146.5,146.45,20.0]
[1728804784593,6.8259,146.5,146.46,3.4723239]
[1728804784794,6.8259,146.5,146.45,20.0]
[1728804785008,29.805584,146.5,146.39,20.0]
[1728804785191,6.8278,146.46,146.4,3.47259483]
[1728804785394,6.8278,146.46,146.41,3.47259483]
[1728804785624,6.8278,146.46,146.42,3.47259483]
[1728804785901,6.8278,146.46,146.43,3.47259483]
[1728804786207,6.8278,146.46,146.44,3.47259483]
[1728804786407,6.8278,146.46,146.4,3.47271298]
[1728804786705,6.8278,146.46,146.41,3.47271298]
[1728804786916,6.8278,146.46,146.42,3.47271298]
[1728804787204,6.8278,146.46,146.43,3.47271298]
[1728804787405,6.8278,146.46,146.4,20.0]
[1728804787707,6.8278,146.46,146.41,3.47255357]
[1728804788003,6.8278,146.46,146.42,3.47255357]
[1728804788211,6.8278,146.46,146.42,3.4725484]
[1728804788383,6.8278,146.46,146.43,3.4725484]
[1728804788584,6.8278,146.46,146.4,20.0]
[1728804788883,6.8278,146.46,146.41,3.47238627]
[1728804789083,6.8278,146.46,146.42,3.47238627]
[1728804789303,6.8278,146.46,146.43,3.47238627]
[1728804789519,6.8278,146.46,146.4,20.0]
[1728804789809,6.8278,146.46,146.41,3.47223173]
[1728804789989,6.8278,146.46,146.42,3.47223173]
[1728804790188,6.8278,146.46,146.43,3.47223173]
[1728804790390,6.8278,146.46,146.4,20.0]
[1728804790591,6.8278,146.46,146.41,3.47208356]
[1728804790800,6.8278,146.46,146.42,3.47208356]
[1728804790985,6.8278,146.46,146.43,3.47208356]
[1728804791186,6.8278,146.46,146.4,20.0]
[1728804791385,6.8278,146.46,146.41,3.47201448]
[1728804791604,6.8278,146.46,146.42,3.47201448]
[1728804791817,6.8278,146.46,146.43,3.47201448]
[1728804791992,6.8278,146.46,146.4,20.0]
[1728804792191,6.8278,146.46,146.41,3.47201448]
[1728804792411,6.8278,146.46,146.42,3.47201448]
[1728804792610,6.8278,146.46,146.43,3.47201448]
[1728804792814,6.8278,146.46,146.4,20.0]
[1728804792999,6.8278,146.46,146.41,3.47212284]
[1728804793200,6.8278,146.46,146.42,3.47212284]
[1728804793530,6.8278,146.46,146.43,3.47212284]
[1728804793818,6.8278,146.46,146.4,20.0]
[1728804793984,6.8278,146.46,146.41,3.47220952]
[1728804794183,6.8278,146.46,146.42,3.47220952]
[1728804794411,6.8278,146.46,146.43,3.47220952]
[1728804794592,6.8278,146.46,146.4,20.0]
[1728804794802,6.8278,146.46,146.41,3.47226661]
[1728804794993,6.8278,146.46,146.42,3.47226661]
[1728804795195,6.8278,146.46,146.43,3.47226661]
[1728804795496,6.8278,146.46,146.4,20.0]
[1728804798818,6.8278,146.46,146.4,11.40198005]
[1728804799122,15.4834,146.47,146.42,20.0]
[1728804801133,15.4834,146.47,146.39,43.776884]
[1728804801305,22.3107,146.47,146.41,20.0]
[1728804802119,22.3107,146.47,146.39,20.0]
[1728804802299,22.3107,146.47,146.39,31.40198005]
[1728804807316,22.3107,146.47,146.39,20.0]
[1728804807623,22.3107,146.47,146.41,20.0]
[1728804810921,15.4834,146.47,146.41,20.0]
[1728804811129,6.8285,146.45,146.39,20.0]
[1728804815418,6.8285,146.45,146.39,31.40198005]
[1728804817622,6.8279,146.46,146.4,1.36593959]
[1728804820636,15.4834,146.47,146.41,11.40198005]
[1728804820933,15.4834,146.47,146.38,15.6792]
[1728804820934,6.8269,146.48,146.42,32.76772149]
[1728804829851,6.8269,146.48,146.42,20.0]
[1728804836945,6.8269,146.48,146.39,20.0]
[1728804837356,6.8269,146.48,146.41,20.0]
[1728804837654,6.8269,146.48,146.41,31.40198005]
[1728804838432,6.8269,146.48,146.42,1.36573146]
[1728804842354,6.8269,146.48,146.41,31.40198005]
[1728804844056,6.8269,146.48,146.42,1.36573088]
[1728804846752,6.8269,146.48,146.41,31.40198005]
[1728804847258,6.8269,146.48,146.42,1.36573203]
[1728804849656,6.8269,146.48,146.42,20.0]
[1728804851671,6.8269,146.48,146.42,21.36572594]
[1728804852665,6.8274,146.47,146.41,11.40198005]
[1728804852863,6.8274,146.47,146.42,20.0]
[1728804855573,23.776884,146.49,146.43,1.36572967]
[1728804855860,6.827,146.48,146.43,1.36572967]
[1728804856245,6.827,146.48,146.44,3.47254523]
[1728804856548,6.827,146.48,146.42,20.0]
[1728804856749,6.827,146.48,146.43,3.47258297]
[1728804856945,6.827,146.48,146.44,3.47258297]
[1728804857154,6.827,146.48,146.42,20.0]
[1728804857360,6.827,146.48,146.43,3.47262011]
[1728804857654,6.827,146.48,146.44,3.47262011]
[1728804857859,6.827,146.48,146.42,20.0]
[1728804858048,6.827,146.48,146.43,3.47282855]
[1728804858349,6.827,146.48,146.44,3.47282855]
[1728804858550,6.827,146.48,146.42,20.0]
[1728804858749,6.827,146.48,146.43,3.4728719]
[1728804858944,6.827,146.48,146.44,3.4728727]
[1728804859340,6.827,146.48,146.42,20.0]
[1728804859540,6.827,146.48,146.43,3.47327042]
[1728804859744,6.827,146.48,146.44,3.47327042]
[1728804859962,6.827,146.48,146.42,20.0]
[1728804860149,6.827,146.48,146.43,3.47326882]
[1728804860446,6.827,146.48,146.44,3.47326882]
[1728804860647,6.827,146.48,146.42,20.0]
[1728804860851,6.827,146.48,146.43,3.47373365]
[1728804861062,6.827,146.48,146.44,3.47373365]
[1728804861260,6.827,146.48,146.42,20.0]
[1728804861453,6.827,146.48,146.43,3.47426756]
[1728804861766,6.8265,146.49,146.44,3.47426756]
[1728804861941,6.8265,146.49,146.45,3.47426756]
[1728804862262,6.8265,146.49,146.43,12.76768062]
[1728804862438,6.8265,146.49,146.44,3.47480856]
[1728804862841,6.8265,146.49,146.43,12.76768062]
[1728804863057,6.8265,146.49,146.44,3.47480554]
[1728804863361,6.8265,146.49,146.45,3.47480554]
[1728804863541,6.8265,146.49,146.43,12.76768062]
[1728804863743,6.8265,146.49,146.44,3.47560838]
[1728804864060,6.8265,146.49,146.45,3.47560838]
[1728804864246,6.8265,146.49,146.44,20.0]
[1728804864446,6.8265,146.49,146.45,3.47603527]
[1728804864654,6.8265,146.49,146.44,20.0]
[1728804864853,6.8265,146.49,146.45,3.47603447]
[1728804865147,6.8265,146.49,146.44,20.0]
[1728804865344,6.8265,146.49,146.45,3.47672971]
[1728804865564,6.8265,146.49,146.44,20.0]
[1728804865767,6.8265,146.49,146.45,3.47673305]
[1728804865942,6.8265,146.49,146.44,20.0]
[1728804866143,6.8265,146.49,146.45,3.47673305]
[1728804866342,6.8265,146.49,146.46,3.4779427]
[1728804866739,6.8265,146.49,146.44,20.0]
[1728804866944,6.8265,146.49,146.45,3.47776738]
[1728804867177,6.8265,146.49,146.46,3.47776738]
[1728804867347,6.8265,146.49,146.44,20.0]
[1728804867550,6.8265,146.49,146.45,3.47762436]
[1728804867770,6.8265,146.49,146.46,3.47764174]
[1728804867978,6.8265,146.49,146.44,20.0]
[1728804868145,6.8265,146.49,146.45,3.47764093]
[1728804868473,6.8265,146.49,146.44,20.0]
[1728804868771,6.8265,146.49,146.45,3.47758578]
[1728804868974,6.8265,146.49,146.44,20.0]
[1728804869274,6.8265,146.49,146.45,3.47758578]
[1728804869456,6.8265,146.49,146.44,20.0]
[1728804869647,6.8265,146.49,146.45,3.47754119]
[1728804869847,6.8265,146.49,146.44,20.0]
[1728804870046,6.8265,146.49,146.45,3.47756062]
[1728804870475,6.8265,146.49,146.44,20.0]
[1728804870643,6.8265,146.49,146.45,3.47758537]
[1728804870850,6.8265,146.49,146.44,20.0]
[1728804871056,6.8265,146.49,146.45,3.47758537]
[1728804871257,6.8265,146.49,146.44,20.0]
[1728804871458,6.8265,146.49,146.45,3.47757294]
[1728804871659,6.8265,146.49,146.44,20.0]
[1728804872059,6.8265,146.49,146.42,11.40198005]
[1728804872253,6.8265,146.49,146.43,20.0]
[1728804872482,6.8265,146.49,146.44,3.47758154]
[1728804872776,6.8265,146.49,146.43,20.0]
[1728804874085,6.8265,146.49,146.44,3.47757085]
[1728804874261,6.8265,146.49,146.45,3.47757085]
[1728804874455,6.8265,146.49,146.44,3.47757085]
[1728804874869,6.8265,146.49,146.45,3.47755722]
[1728804875061,6.8265,146.49,146.44,3.47757085]
[1728804876173,6.8265,146.49,146.45,3.47755642]
[1728804876476,6.8265,146.49,146.44,3.47757085]
[1728804876784,6.8265,146.49,146.45,3.47754451]
[1728804877073,6.8265,146.49,146.44,3.47757085]
[1728804877270,6.8265,146.49,146.45,3.47755737]
[1728804877475,6.8265,146.49,146.44,3.47757085]
[1728804877672,6.8265,146.49,146.45,3.47754513]
[1728804877977,6.8269,146.48,146.44,3.47757085]
[1728804878183,6.8269,146.48,146.45,3.47754927]
[1728804878361,6.8269,146.48,146.44,3.47757085]
[1728804878677,22.1648,146.5,146.45,24.84312539]
[1728804878678,16.1361,146.5,146.45,24.84312539]
[1728804878980,6.8256,146.51,146.46,23.47754804]
[1728804879160,6.8256,146.51,146.47,3.47754804]
[1728804879352,6.8256,146.51,146.45,21.36557735]
[1728804879747,6.8256,146.51,146.46,3.47549433]
[1728804879952,6.8256,146.51,146.47,3.47549433]
[1728804880150,6.8256,146.51,146.48,3.47549433]
[1728804880455,6.8256,146.51,146.45,21.36557735]
[1728804880668,6.8256,146.51,146.46,3.47410467]
[1728804880869,6.8256,146.51,146.47,3.47410467]
[1728804881069,6.8251,146.52,146.47,1.36533857]
[1728804881268,23.776884,146.53,146.48,3.47404586]
[1728804881269,30.601484,146.53,146.48,3.47404586]
[1728804881474,28.4183,146.54,146.49,1.36522447]
[1728804882268,28.4183,146.54,146.49,4.83571763]
[1728804882574,28.4183,146.54,146.49,1.36522447]
[1728804883080,22.0744,146.54,146.49,1.36522447]
[1728804883783,22.0744,146.54,146.48,11.40198005]
[1728804884285,22.0744,146.54,146.48,14.86945275]
[1728804885075,22.0744,146.54,146.48,14.86949321]
[1728804887364,22.0744,146.54,146.48,11.40198005]
[1728804887564,22.0744,146.54,146.47,31.40198005]
[1728804893197,6.8246,146.53,146.47,31.40198005]
[1728804895892,6.8246,146.53,146.48,11.40198005]
[1728804896479,6.8241,146.54,146.48,11.40198005]
[1728804896677,6.8241,146.54,146.49,1.36506656]
[1728804897281,6.8245,146.53,146.47,20.0]
[1728804897474,6.8245,146.53,146.47,31.40198005]
[1728804898990,23.776884,146.55,146.45,3.90055411]
[1728804899294,6.8253,146.52,146.46,20.0]
[1728804900476,16.4064,146.52,146.45,20.0]
[1728804900704,6.826,146.5,146.46,3.46120203]
[1728804901380,6.826,146.5,146.45,20.0]
[1728804901705,6.826,146.5,146.46,3.46120203]
[1728804903485,6.826,146.5,146.45,20.0]
[1728804907798,6.826,146.5,146.45,31.40198005]
[1728804909294,16.4064,146.52,146.45,31.40198005]
[1728804909500,6.8256,146.51,146.45,31.40198005]
[1728804911522,6.8256,146.51,146.44,11.40198005]
[1728804912007,6.8256,146.51,146.45,20.0]
[1728804917512,6.8259,146.5,146.45,20.0]
[1728804920023,16.4064,146.52,146.46,20.0]
[1728804920316,6.8254,146.51,146.46,20.0]